bitfinex-derivatives/quotes_ETHF0:USTF0_20250518
["timestamp","ask_amount","ask_price","bid_price","bid_amount"]
[1747589021580,0.78028,2562.4,2562.1,3.12]
[1747589021770,0.7803,2562.3,2562.2,1.5043]
[1747589027783,0.78032,2562.2,2562.1,3.058]
[1747589027971,2.38192,2562.2,2562.1,3.058]
[1747589028169,0.78035,2562.1,2562.0,6.2658]
[1747589028381,0.78035,2562.1,2562.0,7.8787]
[1747589028777,0.78035,2562.1,2562.0,3.058]
[1747589029086,0.78041,2561.9,2561.8,0.775]
[1747589029276,9.11241,2561.9,2561.8,0.775]
[1747589030085,9.11241,2561.9,2561.8,3.833]
[1747589031785,10.63781,2561.9,2561.8,3.833]
[1747589035382,9.11441,2561.9,2561.8,3.833]
[1747589035590,9.11441,2561.9,2561.8,5.3877]
[1747589040487,9.11441,2561.9,2561.8,3.833]
[1747589040691,0.78068,2561.0,2560.9,0.83257576]
[1747589040897,3.928313,2562.2,2560.9,0.83257576]
[1747589040898,3.2078,2561.5,2560.9,0.83257576]
[1747589041193,0.78067,2561.1,2560.9,3.89057576]
[1747589041392,11.5358,2561.5,2560.9,3.89057576]
[1747589041393,3.2078,2561.5,2560.9,3.89057576]
[1747589041591,3.2078,2561.5,2561.4,0.78056]
[1747589041893,3.2078,2561.5,2561.0,9.65771771]
[1747589041894,3.2078,2562.1,2561.6,0.78047]
[1747589042090,0.78044,2561.8,2561.7,1.5091]
[1747589042291,0.78044,2561.8,2561.7,5.78518589]
[1747589042593,0.78042,2561.9,2561.7,1.5091]
[1747589042794,0.78042,2561.9,2561.7,3.0747]
[1747589042995,0.78043,2561.9,2561.7,3.0747]
[1747589043195,0.78043,2561.9,2561.8,1.5656]
[1747589043496,3.102284,2562.0,2561.8,1.5656]
[1747589043690,0.78041,2561.9,2561.8,1.5656]
[1747589044094,0.78041,2561.9,2561.8,4.6236]
[1747589046602,4.01811,2561.9,2561.8,4.6236]
[1747589046801,4.01811,2561.9,2561.8,3.058]
[1747589046991,0.78065,2561.1,2561.0,1.16628973]
[1747589047300,0.78065,2561.1,2561.0,7.38368973]
[1747589048398,0.78065,2561.1,2561.0,8.95878973]
[1747589049794,0.78064,2561.2,2561.0,8.95878973]
[1747589049995,8.329,2561.2,2561.0,7.7925]
[1747589050195,9.10962,2561.3,2561.0,8.57316]
[1747589050402,8.329,2561.3,2561.0,7.7925]
[1747589050594,8.329,2561.3,2561.1,0.78064]
[1747589050906,0.78058,2561.4,2561.2,4.7491]
[1747589051089,0.78058,2561.4,2561.3,1.5413]
[1747589051293,0.78056,2561.4,2561.3,5.77760594]
[1747589051492,3.10302559,2561.6,2561.4,0.78055]
[1747589051693,3.10302559,2561.6,2561.5,4.6931]
[1747589052305,3.10302559,2561.6,2561.5,7.7511]
[1747589053306,0.78053,2561.6,2561.5,7.7511]
[1747589060208,0.7805,2561.6,2561.5,7.7511]
[1747589060615,0.7805,2561.6,2561.5,8.53163]
[1747589060914,0.7805,2561.6,2561.5,11.83159003]
[1747589061420,0.7805,2561.6,2561.5,11.05108003]
[1747589061614,0.7805,2561.6,2561.5,11.83161003]
[1747589062312,0.7805,2561.6,2561.5,11.05108003]
[1747589067030,0.7805,2561.6,2561.5,3.15018003]
[1747589067429,3.9061,2561.6,2561.5,3.15018003]
[1747589067621,5.4979,2561.6,2561.5,3.15018003]
[1747589068322,5.4979,2561.6,2561.5,0.09218003]
[1747589069129,13.8269,2561.6,2561.5,0.09218003]
[1747589070327,0.7805,2561.6,2561.5,0.09218003]
[1747589070529,0.7805,2561.6,2561.5,3.32728003]
[1747589070731,0.7805,2561.6,2561.5,4.86518003]
[1747589071238,0.7805,2561.6,2561.5,7.92318003]
[1747589071425,0.7805,2561.6,2561.5,12.42504153]
[1747589071626,0.7805,2561.6,2561.5,13.20557153]
[1747589071928,0.7805,2561.6,2561.5,13.20556153]
[1747589072127,0.7805,2561.6,2561.5,12.42504153]
[1747589073435,0.7805,2561.6,2561.5,13.20557153]
[1747589073732,0.7805,2561.6,2561.5,12.42504153]
[1747589077035,0.78049,2561.7,2561.5,12.42504153]
[1747589077234,0.7805,2561.6,2561.5,13.20556153]
[1747589077435,9.10044,2561.8,2561.7,0.78047]
[1747589077739,0.7805,2561.6,2561.5,16.41335153]
[1747589077939,0.78048,2561.7,2561.6,0.78048]
[1747589078235,3.10294559,2561.8,2561.7,5.26991578]
[1747589078629,3.10294559,2561.8,2561.7,9.09747]
[1747589078941,3.10294559,2561.8,2561.7,5.3336393]
[1747589079637,3.10294559,2561.8,2561.7,1.04089031]
[1747589079933,4.74854559,2561.8,2561.7,1.04089031]
[1747589080339,13.06854559,2561.8,2561.7,1.04089031]
[1747589080735,0.78047,2561.7,2561.6,3.058]
[1747589081033,2.38297,2561.7,2561.6,3.058]
[1747589081233,0.7805,2561.6,2561.5,3.15018003]
[1747589081428,2.383,2561.6,2561.5,3.15018003]
[1747589082643,0.7805,2561.6,2561.5,3.15018003]
[1747589085043,0.7805,2561.6,2561.5,3.93071003]
[1747589085244,0.7805,2561.6,2561.5,3.15018003]
[1747589086045,0.7805,2561.6,2561.5,4.97191528]
[1747589086945,0.78048,2561.7,2561.6,0.78049]
[1747589087139,3.10295559,2561.8,2561.7,0.78047]
[1747589087339,0.78048,2561.7,2561.6,2.38558]
[1747589088743,0.78048,2561.7,2561.6,3.89528]
[1747589089342,0.78048,2561.7,2561.6,8.40362172]
[1747589089544,3.10294559,2561.8,2561.7,0.78047]
[1747589089741,3.10294559,2561.8,2561.7,2.33047]
[1747589089942,3.102284,2562.1,2561.7,10.67965748]
[1747589090142,0.7804,2562.0,2561.9,0.78041]
[1747589090536,3.882654,2562.1,2562.0,4.91003748]
[1747589090734,3.882654,2562.1,2562.0,6.55113748]
[1747589090934,3.882654,2562.1,2562.0,8.18373748]
[1747589091145,3.882654,2562.1,2562.0,11.24173748]
[1747589091642,3.102284,2562.1,2562.0,14.44953748]
[1747589092048,0.7803,2562.3,2562.2,0.78032]
[1747589092945,12.996384,2562.6,2562.0,15.62010748]
[1747589093147,11.422284,2562.6,2562.3,3.2078]
[1747589093449,3.882484,2562.6,2562.5,0.78023]
[1747589093744,3.882484,2562.6,2562.5,5.08986024]
[1747589093947,3.102284,2562.6,2562.5,6.67266024]
[1747589094142,3.102284,2562.6,2562.5,9.73066024]
[1747589095751,0.78017,2562.7,2562.6,0.78019]
[1747589096145,8.32,2562.9,2562.7,4.44757451]
[1747589096449,9.1001,2562.9,2562.8,1.6218]
[1747589097147,9.1001,2562.9,2562.8,4.6798]
[1747589097547,2.33509,2563.0,2562.9,0.7801]
[1747589097846,2.33509,2563.0,2562.9,3.1942]
[1747589098047,2.33509,2563.0,2562.9,4.8209]
[1747589098242,2.33509,2563.0,2562.9,7.8789]
[1747589099345,3.2078,2563.1,2562.9,7.8789]
[1747589099649,0.78007,2563.0,2562.9,7.8789]
[1747589101755,2.28626,2563.1,2562.9,8.659]
[1747589101955,2.34242,2563.2,2563.1,0.78004]
[1747589102249,1.5624,2563.2,2563.1,0.78004]
[1747589102453,9.8164,2563.3,2563.2,0.78001]
[1747589102752,8.306,2563.3,2563.2,0.78001]
[1747589103053,9.08598,2563.3,2563.2,0.78001]
[1747589103546,1.5445,2563.5,2563.1,4.6844]
[1747589103752,4.7523,2563.7,2563.2,9.18983177]
[1747589103951,7.28947993,2563.9,2563.5,3.2078]
[1747589104147,6.980139,2563.9,2563.6,3.1435]
[1747589104450,0.77984,2563.8,2563.7,2.40626]
[1747589104643,0.77984,2563.8,2563.7,3.92916]
[1747589105048,6.980139,2563.9,2563.7,3.92916]
[1747589105049,7.759959,2563.9,2563.7,3.92916]
[1747589105250,6.980139,2563.9,2563.8,2.40623]
[1747589105452,5.428997,2564.1,2564.0,0.77977]
[1747589105655,5.428997,2564.1,2564.0,9.08377]
[1747589105954,5.428997,2564.1,2564.0,18.14743383]
[1747589106154,3.2078,2564.4,2564.3,0.77968]
[1747589106349,3.2078,2564.4,2564.2,8.303]
[1747589106651,1.5215,2564.5,2564.4,0.77965]
[1747589106948,1.60945465,2564.6,2564.5,0.77962]
[1747589107151,1.60945465,2564.6,2564.5,5.24750558]
[1747589107348,1.60945465,2564.6,2564.5,4.46788558]
[1747589107550,2.38904465,2564.6,2564.5,4.46788558]
[1747589108159,1.60945465,2564.6,2564.5,4.46788558]
[1747589108452,2.38904465,2564.6,2564.5,9.03218558]
[1747589109957,1.60945465,2564.6,2564.5,9.03218558]
[1747589110257,2.38904465,2564.6,2564.5,9.03218558]
[1747589110658,0.77959,2564.6,2564.5,9.03218558]
[1747589118956,0.77954,2564.8,2564.6,0.77956]
[1747589119367,0.77954,2564.8,2564.7,5.92898233]
[1747589121462,0.77956,2564.7,2564.6,3.058]
[1747589121656,10.69306,2564.7,2564.6,3.058]
[1747589122355,0.77965,2564.4,2564.3,1.5901]
[1747589122755,0.77965,2564.4,2564.3,2.36978]
[1747589122956,2.39314,2564.5,2564.3,1.5901]
[1747589123157,3.84591,2564.6,2564.3,1.5901]
[1747589123364,3.84591,2564.6,2564.4,0.77965]
[1747589123552,2.33621,2564.6,2564.5,1.5901]
[1747589123749,1.5566,2564.6,2564.5,4.01122]
[1747589123968,2.33619,2564.6,2564.5,8.42754135]
[1747589124159,2.33619,2564.6,2564.5,10.70592135]
[1747589124360,2.33619,2564.6,2564.5,9.06442135]
[1747589126060,1.5566,2564.6,2564.5,5.42772]
[1747589126255,12.20275,2564.8,2564.6,0.77958]
[1747589126468,12.20275,2564.8,2564.7,1.5339]
[1747589127168,3.98731,2564.9,2564.8,0.77953]
[1747589127362,11.5078,2564.9,2564.8,0.77953]
[1747589127558,3.2078,2564.9,2564.8,6.6823121]
[1747589127757,3.9873,2564.9,2564.8,5.9027821]
[1747589127958,3.2078,2564.9,2564.8,6.6823121]
[1747589128165,3.2078,2564.9,2564.8,9.7403121]
[1747589128671,3.9873,2564.9,2564.8,9.7403121]
[1747589130772,3.2078,2564.9,2564.8,9.7403121]
[1747589132261,0.77939,2565.3,2564.8,8.9607821]
[1747589132468,0.77939,2565.3,2565.1,0.77942]
[1747589132669,0.77939,2565.3,2565.2,1.602]
[1747589133060,0.77939,2565.3,2565.2,2.38141]
[1747589134269,0.77939,2565.3,2565.2,1.602]
[1747589134671,0.77939,2565.3,2565.2,2.38141]
[1747589134974,0.77939,2565.3,2565.2,3.4982356]
[1747589135674,0.77939,2565.3,2565.2,2.7188256]
[1747589136168,0.77939,2565.3,2565.2,1.1168256]
[1747589136362,3.92839,2565.3,2565.2,1.1168256]
[1747589136563,8.92839,2565.3,2565.2,1.1168256]
[1747589137468,3.92839,2565.3,2565.2,1.1168256]
[1747589137968,0.77943,2565.2,2565.0,1.94573973]
[1747589138174,3.98723,2565.2,2565.1,4.6076]
[1747589138366,0.77941,2565.2,2565.1,4.6076]
[1747589138865,2.40891,2565.2,2565.1,4.6076]
[1747589139066,2.40891,2565.2,2565.1,1.5496]
[1747589140472,0.77944,2565.1,2565.0,3.058]
[1747589140680,4.00844,2565.1,2565.0,3.058]
[1747589141271,0.7795,2564.9,2564.8,1.6079]
[1747589141668,0.7795,2564.9,2564.8,2.38743]
[1747589141868,0.7795,2564.9,2564.8,1.6079]
[1747589142062,0.7795,2564.9,2564.8,2.38743]
[1747589142470,0.7795,2564.9,2564.8,1.6079]
[1747589142975,0.7795,2564.9,2564.8,3.50460646]
[1747589143670,3.229,2565.1,2565.0,0.77947]
[1747589143671,1.5997,2565.1,2565.0,0.77947]
[1747589143871,3.2078,2565.2,2565.1,0.77944]
[1747589144272,9.06533,2565.5,2565.3,0.77936]
[1747589144476,9.06533,2565.5,2565.4,0.77935]
[1747589144664,8.286,2565.5,2565.3,0.77937]
[1747589144869,0.77935,2565.4,2565.3,2.40257]
[1747589145175,0.77935,2565.4,2565.3,5.92105825]
[1747589145370,3.98715,2565.4,2565.3,4.29785825]
[1747589145574,4.7556,2565.4,2565.0,3.1195]
[1747589145772,1.4715,2565.3,2565.0,3.1195]
[1747589145973,0.77941,2565.2,2565.0,3.89896]
[1747589146174,1.4715,2565.3,2565.0,6.1775]
[1747589146374,0.77942,2565.2,2565.1,4.4115286]
[1747589146577,0.77941,2565.2,2565.1,0.77942]
[1747589146774,0.77944,2565.1,2565.0,6.95695]
[1747589146974,0.77942,2565.2,2565.0,6.1775]
[1747589147275,0.77942,2565.2,2565.0,3.89895]
[1747589147474,0.77944,2565.1,2565.0,3.89895]
[1747589148271,0.77944,2565.1,2565.0,3.1195]
[1747589148476,2.44961,2565.2,2565.0,5.01589912]
[1747589148674,3.262,2565.2,2565.0,5.01589912]
[1747589148977,4.04141,2565.2,2565.0,4.23645912]
[1747589149274,0.77944,2565.1,2565.0,5.01589912]
[1747589149477,0.77944,2565.1,2565.0,3.89894]
[1747589150580,3.262,2565.2,2565.1,0.77944]
[1747589151071,4.04141,2565.2,2565.1,0.77944]
[1747589151574,0.77935,2565.4,2565.3,0.77938]
[1747589152578,0.77938,2565.3,2565.1,4.37221414]
[1747589152879,0.7794,2565.3,2565.1,4.37221414]
[1747589153273,0.77938,2565.3,2565.2,0.77939]
[1747589153479,2.38176,2565.4,2565.1,4.37221414]
[1747589154073,0.77939,2565.3,2565.2,0.7794]
[1747589154974,0.77938,2565.3,2565.2,0.7794]
[1747589155173,0.77941,2565.2,2565.1,4.37221414]
[1747589155474,2.32991,2565.2,2565.1,5.15165414]
[1747589155673,2.32991,2565.2,2565.0,3.89895]
[1747589155882,1.5505,2565.2,2565.1,0.77944]
[1747589156083,1.5505,2565.2,2565.0,3.1195]
[1747589156377,1.5505,2565.2,2565.1,0.77944]
[1747589156982,3.1901,2565.2,2565.1,0.77944]
[1747589157984,3.96951,2565.2,2565.1,0.77944]
[1747589158282,3.1901,2565.2,2565.1,0.77944]
[1747589158483,3.2078,2565.4,2565.3,0.77938]
[1747589158988,10.58234,2565.5,2565.4,0.77935]
[1747589159284,10.58234,2565.5,2565.3,0.77935]
[1747589159472,0.77935,2565.4,2565.2,1.598]
[1747589159682,10.58233,2565.5,2565.3,0.77935]
[1747589159986,10.58233,2565.5,2565.4,2.37735]
[1747589160284,9.803,2565.5,2565.4,2.37735]
[1747589160481,1.517,2565.5,2565.4,1.598]
[1747589160678,1.517,2565.5,2565.4,2.37735]
[1747589161181,1.517,2565.5,2565.1,1.94857]
[1747589161182,6.48,2564.7,2563.2,6.42040616]
[1747589161481,3.98748,2564.3,2563.9,0.77979]
[1747589161676,3.98748,2564.3,2564.1,3.11010595]
[1747589161677,0.77971,2564.2,2564.1,3.11010595]
[1747589161881,10.64791,2564.2,2564.1,3.11010595]
[1747589162082,8.271,2564.2,2564.1,3.88984595]
[1747589162282,3.2078,2564.3,2564.2,0.77971]
[1747589162481,3.2078,2564.3,2564.2,1.5195]
[1747589163481,3.2078,2564.3,2564.2,2.29921]
[1747589164680,3.2078,2564.3,2564.2,6.39072659]
[1747589165096,3.2078,2564.3,2564.2,5.61101659]
[1747589165398,3.98748,2564.3,2564.2,1.5195]
[1747589165595,5.61728,2564.3,2564.2,1.5195]
[1747589166591,8.42928,2564.2,2563.2,3.21260616]
[1747589166801,3.2078,2563.2,2562.2,1.5157]
[1747589166996,3.2078,2562.5,2562.0,2.60020357]
[1747589167203,0.78035,2562.1,2562.0,2.60020357]
[1747589167390,3.98815,2562.1,2562.0,2.60020357]
[1747589169695,11.9128,2562.1,2562.0,2.60020357]
[1747589171200,11.9128,2562.1,2562.0,5.65820357]
[1747589172300,11.9128,2562.1,2561.5,8.664]
[1747589172301,0.78068,2561.0,2560.9,0.83257576]
[1747589172600,20.8168,2561.0,2560.4,4.49342747]
[1747589172891,20.8168,2561.0,2560.2,0.78092]
[1747589172892,3.2078,2560.5,2560.2,1.4811]
[1747589173094,3.2078,2560.5,2560.2,2.26201]
[1747589173298,3.98865,2560.5,2560.3,4.14266356]
[1747589173489,0.78087,2560.4,2560.3,5.62376356]
[1747589173689,0.78087,2560.4,2560.3,1.4811]
[1747589174090,5.61934,2560.5,2560.3,1.4811]
[1747589174392,5.61936,2560.5,2560.1,1.67109152]
[1747589174594,5.61937,2560.5,2560.2,1.4811]
[1747589174900,0.78088,2560.4,2560.2,5.90378309]
[1747589175105,0.7809,2560.3,2560.2,4.42268309]
[1747589175310,0.78093,2560.2,2560.1,0.89015152]
[1747589175493,12.69773,2560.2,2560.1,0.89015152]
[1747589177206,3.2078,2559.6,2558.3,1.00530303]
[1747589177403,3.2078,2558.5,2558.3,1.00530303]
[1747589177795,0.78148,2558.4,2558.3,1.00530303]
[1747589179095,18.438,2558.4,2557.9,1.03409091]
[1747589179298,3.9894,2558.0,2557.9,1.03409091]
[1747589179789,3.9894,2558.0,2557.2,16.22059152]
[1747589179790,8.2078,2558.0,2557.2,15.43876152]
[1747589179991,3.2078,2557.6,2557.2,16.22059152]
[1747589180204,3.2078,2557.6,2557.2,15.43876152]
[1747589180807,12.5078,2557.6,2557.2,15.43876152]
[1747589181004,1.95454,2557.3,2556.4,3.2078]
[1747589181197,1.9547,2557.1,2555.7,25.88004873]
[1747589181398,3.2078,2556.5,2556.0,30.11585689]
[1747589181592,3.2078,2556.5,2555.7,25.88004873]
[1747589181593,3.2078,2556.5,2555.7,1.1780303]
[1747589182301,3.2078,2556.5,2556.1,3.058]
[1747589182605,3.2078,2556.5,2554.4,4.30659552]
[1747589182606,1.95548,2556.1,2554.4,4.30659552]
[1747589182798,3.2078,2555.0,2554.4,4.30659552]
[1747589183100,3.2078,2555.0,2554.9,4.29360606]
[1747589183693,3.2078,2555.4,2554.9,8.82878419]
[1747589183893,3.2078,2555.8,2555.5,0.78235]
[1747589184209,3.2078,2555.8,2555.5,3.058]
[1747589184901,3.2078,2555.8,2555.6,4.438297]
[1747589185103,3.2078,2555.8,2555.7,0.7823]
[1747589185303,3.2078,2556.1,2555.6,4.438297]
[1747589185504,3.2078,2556.1,2555.8,0.78224]
[1747589185706,3.2078,2556.1,2555.5,3.058]
[1747589185900,3.2078,2556.1,2555.5,6.2658]
[1747589186206,3.2078,2556.1,2555.9,0.78223]
[1747589186410,3.2078,2556.1,2556.0,0.78221]
[1747589186611,3.2078,2556.4,2556.0,4.97288542]
[1747589186801,3.2078,2556.4,2556.0,10.382]
[1747589187005,3.97594303,2558.2,2556.2,3.2078]
[1747589187006,3.2078,2557.1,2556.2,3.2078]
[1747589187205,0.78192,2557.0,2556.5,0.78203]
[1747589187608,0.78192,2557.0,2556.6,4.95571271]
[1747589187905,3.98968,2557.1,2556.7,0.78199]
[1747589188113,3.98969,2557.1,2556.7,0.78198]
[1747589188408,0.78189,2557.1,2556.8,4.13642518]
[1747589188608,3.2078,2557.4,2556.8,4.13642518]
[1747589188810,3.2078,2557.4,2556.9,1.6185]
[1747589189105,3.2078,2557.4,2557.0,4.37877567]
[1747589189311,3.2078,2557.4,2556.7,3.2078]
[1747589189312,1.95454,2557.3,2556.7,3.2078]
[1747589189498,1.955,2556.7,2555.2,3.2078]
[1747589189803,0.78221,2556.0,2555.1,1.6185]
[1747589190107,0.78202,2556.7,2556.0,4.37877567]
[1747589190308,3.2078,2556.9,2555.9,23.99090426]
[1747589190611,0.78207,2556.5,2555.9,19.4632]
[1747589190812,0.78211,2556.4,2556.0,4.53370426]
[1747589191109,0.78211,2556.4,2556.0,8.37390426]
[1747589191303,0.78211,2556.4,2556.0,8.37391426]
[1747589191508,3.2078,2556.6,2556.0,7.59170426]
[1747589191701,3.98985,2556.6,2556.2,0.78213]
[1747589191907,3.98983,2556.6,2556.0,10.79950426]
[1747589192102,3.98983,2556.6,2556.3,4.53700944]
[1747589192304,3.2078,2556.6,2556.2,0.78215]
[1747589192503,3.2078,2556.6,2556.1,15.06663776]
[1747589192705,3.2078,2556.6,2556.3,5.05174776]
[1747589192909,0.78195,2556.9,2556.6,0.78201]
[1747589193211,3.2078,2557.0,2556.4,7.53654534]
[1747589193410,3.98972,2557.0,2556.7,5.11072534]
[1747589193708,1.95422,2557.8,2557.0,0.7819]
[1747589193709,3.98963,2557.3,2557.0,0.7819]
[1747589193915,3.98963,2557.3,2557.0,0.78189]
[1747589194113,0.78177,2557.5,2557.2,0.78182]
[1747589194316,3.2078,2557.6,2557.3,0.78179]
[1747589194522,3.98953,2557.6,2557.4,0.78178]
[1747589194716,3.98953,2557.6,2557.3,0.78181]
[1747589194913,3.2078,2557.6,2557.5,4.26348115]
[1747589195210,3.2078,2557.6,2556.0,4.00320003]
[1747589195211,30.01413,2557.6,2556.4,0.78208]
[1747589195409,3.2078,2557.1,2556.3,3.2078]
[1747589195609,3.98968,2557.1,2556.8,5.12148785]
[1747589195810,0.78187,2557.2,2556.6,14.1198]
[1747589196009,0.78183,2557.3,2556.6,14.1198]
[1747589196211,3.2078,2557.4,2556.9,4.33953785]
[1747589196412,3.2078,2557.4,2556.9,0.78193]
[1747589196603,3.2078,2557.4,2556.6,3.2078]
[1747589196809,0.78186,2557.2,2557.0,4.30392296]
[1747589197110,0.78186,2557.2,2556.9,0.78192]
[1747589197309,0.78186,2557.2,2556.6,3.2078]
[1747589197310,5.16257,2557.0,2556.5,2.86248741]
[1747589197513,0.78221,2556.0,2555.9,4.71912]
[1747589197716,0.78252,2555.0,2554.6,0.78263]
[1747589197909,3.99032,2555.0,2554.4,3.53477394]
[1747589198216,3.99032,2555.0,2554.9,8.6115163]
[1747589198411,3.2078,2555.0,2554.9,4.29360606]
[1747589198607,3.99032,2555.0,2554.9,8.81987319]
[1747589198808,3.2078,2555.4,2554.9,24.96887319]
[1747589199014,3.9902,2555.4,2555.0,0.7825]
[1747589199213,0.78243,2555.3,2554.9,20.76340319]
[1747589199519,3.99021,2555.4,2555.1,4.37171126]
[1747589199718,3.2078,2555.4,2555.1,0.78246]
[1747589199919,3.2078,2555.4,2555.2,0.78246]
[1747589200122,3.2078,2555.4,2555.2,4.37171126]
[1747589200418,3.2078,2555.4,2555.1,4.19952984]
[1747589200610,3.2078,2555.4,2555.0,14.184]
[1747589200806,3.2078,2555.4,2555.3,0.78243]
[1747589201009,3.2078,2556.0,2555.3,3.2078]
[1747589201210,3.2078,2556.0,2555.4,11.132]
[1747589201407,0.78233,2555.7,2555.3,7.25752984]
[1747589201621,0.78233,2555.6,2555.5,4.49031793]
[1747589202026,0.78238,2555.5,2555.4,4.49031793]
[1747589202320,1.95531,2556.3,2555.4,3.2078]
[1747589202321,3.2078,2556.0,2555.4,3.2078]
[1747589202509,14.1088,2556.3,2555.8,0.78226]
[1747589202714,0.7822,2556.1,2555.8,0.78226]
[1747589202914,14.1088,2556.3,2556.0,0.09218003]
[1747589203122,3.2078,2556.3,2556.0,0.09218003]
[1747589203422,0.78201,2556.7,2556.1,4.22650474]
[1747589203623,5.16236,2557.3,2556.3,3.2078]
[1747589203820,3.2078,2557.0,2556.6,0.78202]
[1747589204020,0.78195,2556.9,2556.7,0.78199]
[1747589204215,3.2078,2557.0,2554.1,3.2078]
[1747589204216,1.95528,2556.4,2554.1,3.2078]
[1747589204526,0.78236,2555.5,2555.4,2.3071]
[1747589205022,0.78236,2555.5,2555.4,4.07640474]
[1747589205422,3.99016,2555.5,2555.4,4.07640474]
[1747589205922,0.78236,2555.5,2555.4,4.07640474]
[1747589206112,3.99016,2555.5,2555.4,4.07640474]
[1747589206619,3.99016,2555.5,2555.4,1.76930474]
[1747589207624,3.99016,2555.5,2555.4,4.07640474]
[1747589208222,3.99016,2555.5,2554.6,11.779]
[1747589208223,0.78279,2554.1,2554.0,0.05587182]
[1747589208424,0.78279,2554.1,2553.6,2.28165118]
[1747589208425,0.78292,2553.7,2553.6,2.28165118]
[1747589208725,3.2078,2553.7,2553.6,6.67420436]
[1747589208925,3.2078,2554.0,2553.6,13.98512436]
[1747589209119,3.2078,2554.0,2553.6,6.67420436]
[1747589209320,3.2078,2554.0,2553.6,12.45713436]
[1747589209517,3.2078,2554.3,2553.6,11.67420436]
[1747589209719,2.06037,2555.4,2554.1,3.99059]
[1747589209720,0.78266,2554.6,2554.1,3.99059]
[1747589209926,3.2078,2555.0,2554.2,12.118]
[1747589210123,3.2078,2554.7,2554.3,12.106]
[1747589210328,3.2078,2554.4,2554.2,4.34982641]
[1747589210524,3.2078,2554.4,2554.2,12.98673]
[1747589210825,3.2078,2554.4,2554.3,4.26404873]
[1747589211226,3.2078,2554.8,2554.3,15.52984873]
[1747589211424,3.99031,2555.1,2554.5,0.78265]
[1747589211627,3.2078,2555.1,2555.0,0.78252]
[1747589211929,4.32539284,2555.4,2555.0,4.32690878]
[1747589212229,4.32539284,2555.4,2555.0,8.058]
[1747589212425,4.32539284,2555.4,2555.1,13.00647]
[1747589212629,4.32539284,2555.4,2555.3,0.78243]
[1747589212926,1.49012379,2555.6,2555.5,0.78236]
[1747589213327,1.49012379,2555.6,2555.5,10.17622277]
[1747589213516,1.49012379,2555.6,2555.5,11.77802277]
[1747589213722,1.49012379,2555.6,2555.5,14.98582277]
[1747589213917,0.78224,2556.0,2555.6,0.78233]
[1747589214125,3.2078,2555.7,2554.2,3.2078]
[1747589214331,3.99047,2554.5,2553.8,0.78287]
[1747589214627,3.99047,2554.5,2554.4,6.38930568]
[1747589215228,3.97205194,2554.5,2554.4,6.38930568]
[1747589215432,3.2078,2554.5,2554.4,6.38930568]
[1747589215631,3.99047,2554.5,2554.4,6.38930568]
[1747589216333,3.2078,2554.5,2554.4,14.44730568]
[1747589216728,3.2078,2554.5,2554.4,16.06310568]
[1747589217128,3.99047,2554.5,2554.4,16.06310568]
[1747589217324,3.99047,2554.5,2554.4,13.7814545]
[1747589217525,3.99047,2554.5,2554.4,8.7814545]
[1747589217735,3.2078,2554.5,2554.4,7.4715371]
[1747589218229,3.2078,2554.5,2553.4,1.95747]
[1747589218230,3.2078,2553.5,2553.1,1.35075758]
[1747589218531,3.2078,2553.2,2553.1,2.86465758]
[1747589218725,3.2078,2553.3,2553.1,7.86465758]
[1747589218924,3.2078,2553.6,2553.2,4.53573998]
[1747589219129,3.2078,2553.3,2553.2,0.78307]
[1747589219529,3.2078,2553.3,2553.2,10.20156345]
[1747589219729,3.2078,2553.8,2553.2,12.62629345]
[1747589219942,3.2078,2553.8,2553.2,7.62629345]
[1747589220242,3.2078,2553.8,2553.3,12.902]
[1747589220533,5.511,2553.8,2553.3,0.78302]
[1747589220734,3.99078,2553.5,2553.4,4.54443832]
[1747589221148,3.99078,2553.5,2552.7,14.29154545]
[1747589221149,62.3698,2553.5,2552.4,0.638]
[1747589221335,62.3698,2553.5,2549.3,16.11170825]
[1747589221336,3.2078,2552.4,2549.3,16.11170825]
[1747589221534,0.78424,2549.4,2544.9,3.86173727]
[1747589221726,7.21390431,2546.8,2543.6,1.89019269]
[1747589221927,6.48,2547.4,2544.1,3.2078]
[1747589222136,6.48,2544.5,2543.7,21.748]
[1747589222433,6.48,2544.5,2544.4,3.2078]
[1747589222634,3.2078,2544.7,2543.8,3.34817786]
[1747589222931,3.2078,2544.1,2543.7,1.44776275]
[1747589223136,0.74,2544.5,2543.8,12.95641032]
[1747589223434,3.2078,2545.7,2544.4,3.2078]
[1747589223628,3.2078,2545.7,2544.9,3.2078]
[1747589223827,3.2078,2545.7,2545.2,9.89841032]
[1747589224029,1.4885,2547.0,2545.0,1.08499865]
[1747589224030,3.2078,2545.3,2545.0,1.08499865]
[1747589224229,3.2078,2545.3,2545.1,3.058]
[1747589224426,3.2078,2544.9,2544.6,1.97676183]
[1747589224627,3.2078,2544.9,2543.3,7.06110031]
[1747589224823,25.78,2545.2,2544.4,2.34778269]
[1747589225023,25.78,2545.2,2543.7,4.44316183]
[1747589225024,3.2078,2544.4,2543.7,4.44316183]
[1747589225223,3.2078,2545.0,2544.5,2.34778269]
[1747589225433,3.2078,2545.0,2544.4,9.89841032]
[1747589225635,3.2078,2545.0,2544.9,2.34778269]
[1747589225831,3.2078,2545.4,2544.9,6.08378269]
[1747589226025,1.57131789,2545.6,2545.2,2.34778269]
[1747589226228,3.2078,2546.2,2545.5,9.89841032]
[1747589226428,3.2078,2546.2,2545.9,9.89841032]
[1747589226633,3.2078,2546.8,2546.0,2.34778269]
[1747589226831,3.2078,2546.8,2546.1,3.736]
[1747589227035,3.2078,2546.5,2546.1,3.736]
[1747589227226,3.2078,2546.5,2546.2,2.34778269]
[1747589227433,3.2078,2546.5,2546.1,3.736]